Cogmind - Beta 14 *** ADVENTURER MODE // 2024.10.10 @ 19:28:17 // Winter2022/Polymind Player: DeepestRoots Result: Destroyed by as-12140 with Assembled Maul Performance ------------- Evolutions (0) 0 Regions Visited (2) 400 Robots Destroyed (17) 85 Value Destroyed (486) 486 Prototype IDs (0) 0 Alien Tech Used (0) 0 Bonus (1590) 1590 TOTAL SCORE: 1961 Bonus ------- Polymind Skill 1590 Cogmind --------- Core Integrity 0/250 Matter 200/200 Energy 260/260 System Corruption 3% Temperature Cool (0) Movement Walking (120) Location -10/Mines Parts ------- > --- POWER (1) -------- Fission Core > --- PROPULSION (2) --- Flexi-carbon Leg Flexi-carbon Leg > --- UTILITY (3) ------ Targeting Computer Armor Integrity Analyzer > --- WEAPON (1) ------- Bore Cannon > --- INVENTORY (1) ---- (None) Peak State ------------ > --- POWER ------------ Fission Core > --- PROPULSION ------- Flexi-carbon Leg Flexi-carbon Leg > --- UTILITY ---------- Targeting Computer Armor Integrity Analyzer Phase Shifter > --- WEAPON ----------- Bore Cannon > --- INVENTORY -------- (None) [Rating: 30] Favorites ----------- Power Fission Core Power Core Fission Core Propulsion Aluminum Leg Leg Aluminum Leg Utility Improved Heat Sink Device Improved Heat Sink Processor Targeting Computer Weapon Particle Gun Energy Gun Particle Gun Ballistic Cannon Bore Cannon Build | -11 -10 -10 ------- Run | Yrd Mat Min Slots Evolved . | . . . Power . | . . . Propulsion . | . . . Utility . | . . . Weapon . | . . . Parts Attached . | . . . Power . | . . . Engine . | . . . Core . | . . . Reactor . | . . . Propulsion . | . . . Treads . | . . . Leg . | . . . Wheel . | . . . Hover . | . . . Flight . | . . . Utility . | . . . Device . | . . . Storage . | . . . Processor . | . . . Hackware . | . . . Protection . | . . . Artifact . | . . . Weapon . | . . . Energy Gun . | . . . Energy Cannon . | . . . Ballistic Gun . | . . . Ballistic Cannon . | . . . Launcher . | . . . Special Weapon . | . . . Impact Weapon . | . . . Slashing Weapon . | . . . Piercing Weapon . | . . . Special Melee Weapon . | . . . Unidentified Prototypes . | . . . Parts Lost 2 | . 1 1 Power 1 | . 1 . Propulsion . | . . . Utility 1 | . . 1 Weapon . | . . . Highest Loss Streak 1 | . 1 1 To Critical Strikes . | . . . Average Slot Usage (%) 84 | . 81 91 Core 5 | . 2 13 Leg 36 | . 39 28 Device 16 | . 19 6 Processor 7 | . . 27 Energy Gun 14 | . 19 . Ballistic Cannon 3 | . . 13 Peak Build Rating 30 | . 10 30 Average Rating 12 | . 7 26 On Entrance 2 | . . 7 Naked Turns 30 | . 27 3 Heaviest Build 20 | . 9 20 Greatest Support 40 | 3 20 40 Greatest Overweight (x) . | . . . Average Overweight (x) . | . . . Largest Inventory Capacity 1 | . 1 1 Average Capacity . | . . . Most Carried . | . . . Average Carried . | . . . Final Capacity 1 | . 1 1 Final Carried . | . . . Class Distribution -------------------- 71% | Grunt 26% | Hunter Dominant Class ---------------- Grunt | -10/Materials Hunter | -10/Mines Resources | -11 -10 -10 ----------- Run | Yrd Mat Min Matter Collected 77 | . . 77 Remotely . | . . . Salvage Created 560 | . 532 28 Parts 33 | . 32 1 Haulers Intercepted . | . . . Recyclers Shooed 2 | . 2 . Parts Field Recycled . | . . . Retrieved Matter . | . . . Parts Self-Destructed . | . . . Prevented . | . . . Kills | -11 -10 -10 ------- Run | Yrd Mat Min Combat Hostiles Destroyed 14 | . 13 1 Guns 11 | . 11 . Cannons 1 | . . 1 Classes Destroyed 6 | . 5 1 Recycler 1 | . 1 . Watcher 2 | . 2 . Swarmer 3 | . 3 . Grunt 8 | . 8 . Demolisher 1 | . . 1 Subdweller 2 | . 2 . Best Kill Streak 5 | . 5 1 Combat Bots Only 3 | . 3 1 Max Kills in Single Turn 1 | . 1 1 Gunslinging . | . . . Exploded . | . . . Melee . | . . . Uniques/NPCs Destroyed . | . . . Combat | -11 -10 -10 -------- Run | Yrd Mat Min Hostile Shots Fired 67 | . 54 13 Missed 18 | . 16 2 Damage Taken 852 | . 455 397 Core 273 | . 205 68 Absorbed by Shields . | . . . Ignored by Resistances 238 | . 132 106 Core Remaining (%) 100 | 100 . . Volleys Fired 86 | . 77 9 Largest 1 | . 1 1 Hottest 65 | . 65 57 Shots Fired 86 | . 77 9 Gun 77 | . 77 . Cannon 9 | . . 9 Launcher . | . . . Special . | . . . Kinetic 9 | . . 9 Thermal 77 | . 77 . Explosive . | . . . Electromagnetic . | . . . Robot Hit Streak 15 | . 15 2 Robot Miss Streak 3 | . 3 3 Penetration Max . | . . . Secondary Targets . | . . . Shots Hit Robots 62 | . 58 4 Core Hits 23 | . 21 2 Critical Kills 1 | . . 1 Critical Parts Destroyed 1 | . . 1 Critical Strikes 6 | . 4 2 Burn 4 | . 4 . Destroy 2 | . . 2 Melee Attacks . | . . . Impact . | . . . Slashing . | . . . Piercing . | . . . Sneak Attacks . | . . . Combat Hostiles . | . . . Follow-up Attacks . | . . . Damage Inflicted 1032 | . 924 108 Guns 905 | . 905 . Cannons 108 | . . 108 Explosions . | . . . Melee . | . . . Ramming 19 | . 19 . Kinetic 108 | . . 108 Thermal 905 | . 905 . Explosive . | . . . Electromagnetic . | . . . Impact . | . . . Slashing . | . . . Piercing . | . . . Highest Corruption 3 | . 3 3 Average Corruption 2 | . 2 3 Corruption Purged . | . . . Corruption Blocked . | . . . Effects 18 | . 8 10 Message Errors 6 | . 2 4 Matter Fused 2 | . . 2 Heat Flow Errors 3 | . 1 2 Energy Discharges 4 | . 2 2 Data Loss (minor) 2 | . 2 . Data Loss (major) 1 | . 1 . Overload Shots . | . . . Overflow Damage . | . . . Projectiles . | . . . Explosions . | . . . Melee . | . . . Knockbacks 1 | . . 1 Impact . | . . . Kinetic 1 | . . 1 Secondary . | . . . Self-Inflicted Damage . | . . . Shots . | . . . Rammed . | . . . Targets Rammed 7 | . 7 . Kicked 7 | . 7 . Crushed . | . . . Highest Temperature 186 | . 165 186 Average Temperature 36 | . 22 95 Received Heat Transfer 246 | . 237 9 Siege Activations . | . . . Robots Corrupted . | . . . Combat Hostiles . | . . . Parts Fried . | . . . Impact Corruptions . | . . . Robots Melted 2 | . 2 . Combat Hostiles 2 | . 2 . Parts Melted 3 | . 3 . Heat Transferred 2442 | . 2442 . Parts Sabotaged . | . . . Parts Stolen . | . . . Parts Stripped . | . . . Power Chain Reactions . | . . . Alert | -11 -10 -10 ------- Run | Yrd Mat Min Peak Influence 200 | . 200 46 Initial . | . . . Average 48 | . 63 13 Maximum Alert Level 1 | . 1 . Low Security (%) 98 | 100 98 100 Level 1 1 | . 1 . Level 2 . | . . . Level 3 . | . . . Level 4 . | . . . Level 5 . | . . . High Security . | . . . Max Security . | . . . Squads Dispatched 3 | . 3 . Investigation 3 | . 3 . Extermination . | . . . Reinforcement . | . . . Assault . | . . . Garrison . | . . . Intercept . | . . . Searches Triggered . | . . . Construction Impeded . | . . . Haulers Reinforced . | . . . Active Scanning Responses . | . . . Cargo Convoy Interrupts . | . . . Stealth | -11 -10 -10 --------- Run | Yrd Mat Min Distress Signals 1 | . 1 . Communications Jammed . | . . . Distress Signals . | . . . Times Spotted 33 | . 26 7 Peak Tracking Total 4 | . 4 2 Tactical Retreats 6 | . 4 2 Traps | -11 -10 -10 ------- Run | Yrd Mat Min Traps Triggered 4 | . 4 . Indirectly . | . . . Trap Hack Attempts . | . . . Triggered . | . . . Disarmed . | . . . Reprogrammed . | . . . Reused . | . . . Traps Extracted . | . . . Installed . | . . . Triggered . | . . . Machines | -11 -10 -10 ---------- Run | Yrd Mat Min Machines Disabled . | . . . Max in Single Turn . | . . . Machines Repaired . | . . . Machines Dismantled . | . . . Machines Sabotaged . | . . . Overloaded Fab Kills . | . . . Hacking | -11 -10 -10 --------- Run | Yrd Mat Min Machines Accessed 4 | . 3 1 Terminals 2 | . 2 . Fabricators . | . . . Repair Stations 1 | . 1 . Recycling Units . | . . . Scanalyzers . | . . . Garrison Access . | . . . Total Hacks 8 | . 7 1 Successful 3 | . 2 1 Failed 5 | . 5 . Catastrophic 1 | . 1 . Database Lockouts . | . . . Manual . | . . . Terminals 5 | . 5 . Fabricators . | . . . Repair Stations 2 | . 2 . Recycling Units . | . . . Scanalyzers . | . . . Garrison Access . | . . . Terminal Hacks 3 | . 2 1 Open Door 1 | . . 1 Unreport Threat 1 | . 1 . Hauler Manifests 1 | . 1 . Fabricator Hacks . | . . . Repair Station Hacks . | . . . Recycling Unit Hacks . | . . . Scanalyzer . | . . . Garrison Access Hacks . | . . . Unauthorized Hacks . | . . . Terminals . | . . . Fabricators . | . . . Repair Stations . | . . . Recycling Units . | . . . Scanalyzers . | . . . Garrison Access . | . . . Data Cores Recovered . | . . . Used . | . . . Hacking Detections 2 | . 2 . Full Trace Events 2 | . 2 . Feedback Events . | . . . Feedback Blocked . | . . . Robot Schematics Acquired . | . . . Robots Built . | . . . Authchips . | . . . Time . | . . . Total Robot Build Rating . | . . . Part Schematics Acquired . | . . . Parts Built . | . . . Authchips . | . . . Time . | . . . Total Part Build Rating . | . . . Parts Repaired . | . . . Time . | . . . Parts Recycled . | . . . Recycled Matter . | . . . Retrieved Matter . | . . . Retrieved Components . | . . . Parts Scanalyzed . | . . . Part Schematics Acquired . | . . . Parts Damaged . | . . . Bothacking | -11 -10 -10 ------------ Run | Yrd Mat Min Used RIF Installer . | . . . Robots Hacked 1 | . 1 . Non-combat . | . . . Combat 1 | . 1 . Robot Hacks Applied 1 | . 1 . find_shortcuts 1 | . 1 . Relay Couplers Released . | . . . Fabnet Peak Effective % . | . . . Robots Rewired . | . . . Allies Hacked . | . . . Hacks Repelled . | . . . Allies | -11 -10 -10 -------- Run | Yrd Mat Min Total Allies . | . . . Largest Group . | . . . Highest-Rated Group . | . . . Highest-Rated Ally . | . . . Total Orders . | . . . Ally Attacks . | . . . Total Damage . | . . . Kills . | . . . Allies Corrupted . | . . . Allies Melted . | . . . Intel | -11 -10 -10 ------- Run | Yrd Mat Min Robot Analysis Total 2 | . 1 1 Derelict Logs Recovered . | . . . Drone Launches . | . . . Drone Recoveries . | . . . Exploration | -11 -10 -10 ------------- Run | Yrd Mat Min Turns Passed 1791 | 18 1284 489 Spaces Moved 1230 | 36 908 286 Core 78 | 36 37 5 Treads . | . . . Legs 1152 | . 871 281 Wheels . | . . . Hover . | . . . Flight . | . . . Fastest Speed 50 | 50 50 50 Average Speed 115 | 50 117 118 Slowest Speed 120 | 50 120 120 Overloaded Moves . | . . . Propulsion Burnouts . | . . . Robots Hopped . | . . . Cave-ins Triggered . | . . . Exploration Rate (%) 54 | 4 98 60 Regions Visited 2 Branch Regions 1 Pre-discovered Areas 1 | . . 1 Known Exits Taken . | . . . Unknown Exits Taken 2 | 1 1 . Scrap Searched 1 | . . 1 Spaces Dug . | . . . Terrain Destroyed 3 | . . 3 Melee . | . . . Projectile 3 | . . 3 AOE . | . . . Terrain Rammed . | . . . Walls Destroyed . | . . . Machines Disabled . | . . . Actions | -11 -10 -10 --------- Run | Yrd Mat Min Total 1511 | 35 1050 426 Wait 190 | . 59 131 Move 1228 | 35 907 286 Hop . | . . . Pick Up . | . . . Fast Attach . | . . . Attach . | . . . Detach . | . . . Swap . | . . . Drop . | . . . Fire 86 | . 77 9 Melee . | . . . Ram . | . . . Kick 7 | . 7 . Crush . | . . . Escape Stasis . | . . . Rewire . | . . . Trap . | . . . Miscellaneous . | . . . Route ------- -11/Scrapyard -10/Materials (discovered 5 exits: [*Mat x3] / *Min / [*Sub]) -10/Mines History --------- Turn | Location | Event 2 | -11/Scrapyard | Discovered new exit (range 16) 19 | -11/Scrapyard | Entered Materials 118 | -10/Materials | Discovered new exit (range 16) 375 | -10/Materials | Discovered new exit (range 11) 819 | -10/Materials | Derelicts attacked the area 911 | -10/Materials | Core integrity fell below 50% 929 | -10/Materials | Core integrity fell below 20% 951 | -10/Materials | Discovered new exit (range 7) 1096 | -10/Materials | Discovered new exit (range 7) 1293 | -10/Materials | Discovered new exit (range 10) 1303 | -10/Materials | Entered Mines 1304 | -10/Mines | Assembled infested the area 1304 | -10/Mines | Learned location of Storage (-7) 1309 | -10/Mines | Assisted by a Guerilla fighting off Assembled 1609 | -10/Mines | Found the Drone Emporium 1792 | -10/Mines | Destroyed by as-12140 with Assembled Maul Last Messages --------------- >>Open Door Sealed Doors opened. 01609_ F8-MMQ(g): "Well that was anticlimactic. Heard you outside and thought you were from the Merchants Guild. I haven't even officially opened my Drone Emporium yet but am totally ready to tell them where they can shove that C&D." 01611_ F8-MMQ(g): "I'm a fan of the free market. Free drones for all! No strings attached!" 01626_ System corrupted: Heat flow error (+211). 01648_ IES/=YWQXD1O#ZVJLT43:HP3R 01664_ System corrupted: Matter fused (-6). 01683_ The unstable cave ceiling collapses. 01731_ Searching scrap... 01731_ Found Seismic Detector. 01731_ Found 66 Matter. 01732_ System corrupted: Energy discharge (-67). 01732_ Acquired 12 matter. 01786_ G0PKW8R